fUST/lending_fUST_20260103
["ID","MTS","AMOUNT","RATE_DAILY","PERIOD"]
[400369752,1767448243669,-800.0,0.00015068,2]
[400369753,1767448243679,-314.28,0.000151,2]
[400369754,1767448243690,-221.71,0.000152,2]
[400369755,1767448243699,-2000.0,0.00015342,2]
[400369756,1767448243710,-1167.75741766,0.00015464,2]
[400369757,1767448243720,-221.71,0.000156,2]
[400369758,1767448243729,-2465.36393751,0.00015678,2]
[400369759,1767448243738,-2500.0,0.0001589,2]
[400369760,1767448243748,-221.71,0.000159,2]
[400369762,1767448243757,-1093.84384208,0.00016164,2]
[400369763,1767448243767,-221.71,0.000163,2]
[400369764,1767448243776,-500.0,0.00016311,2]
[400369765,1767448243785,-500.0,0.00016311,2]
[400369766,1767448243795,-500.0,0.00016311,2]
[400369767,1767448243804,-500.0,0.00016311,2]
[400369768,1767448243814,-500.0,0.00016311,2]
[400369769,1767448243823,-500.0,0.00016311,2]
[400369770,1767448243833,-500.0,0.00016311,2]
[400369771,1767448243843,-500.0,0.00016311,2]
[400369772,1767448243852,-500.0,0.00016311,2]
[400369773,1767448243862,-500.0,0.00016311,2]
[400369774,1767448243871,-500.0,0.00016311,2]
[400369775,1767448243881,-500.0,0.00016311,2]
[400369776,1767448243890,-500.0,0.00016311,2]
[400369777,1767448243899,-500.0,0.00016311,2]
[400369778,1767448243910,-500.0,0.00016311,2]
[400369779,1767448243920,-500.0,0.00016311,2]
[400369780,1767448243929,-484.05461293,0.00016311,2]
[400369781,1767448243938,-823.0,0.00016326,2]
[400369782,1767448243948,-459.87334668,0.00016355,2]
[400369783,1767448243957,-259.06458157,0.00016384,3]
[400369784,1767448243966,-972.294013,0.00016438,2]
[400369786,1767448243976,-972.294013,0.00016438,2]
[400369787,1767448243985,-972.294013,0.00016438,2]
[400369788,1767448243995,-972.294013,0.00016438,2]
[400369789,1767448244004,-151.0,0.00016438,2]
[400369790,1767448244014,-726.6,0.00016438,2]
[400369791,1767448244023,-151.0,0.00016438,2]
[400369792,1767448244033,-500.0,0.00016438,2]
[400369793,1767448244043,-500.0,0.00016438,2]
[400369794,1767448244052,-500.0,0.00016438,2]
[400369795,1767448244062,-500.0,0.00016438,2]
[400369796,1767448244072,-500.0,0.00016438,2]
[400369797,1767448244081,-500.0,0.00016438,2]
[400369798,1767448244091,-500.0,0.00016438,2]
[400369799,1767448244100,-500.0,0.00016438,2]
[400369800,1767448244110,-500.0,0.00016438,2]
[400369801,1767448244191,-500.0,0.00016438,2]
[400369802,1767448244208,-500.0,0.00016438,2]
[400369803,1767448244218,-500.0,0.00016438,2]
[400369804,1767448244227,-500.0,0.00016438,2]
[400369805,1767448244237,-500.0,0.00016438,2]
[400369806,1767448244247,-500.0,0.00016438,2]
[400369807,1767448244258,-500.0,0.00016438,2]
[400369808,1767448244268,-500.0,0.00016438,2]
[400369809,1767448244277,-500.0,0.00016438,2]
[400369810,1767448244286,-500.0,0.00016438,2]
[400369811,1767448244297,-500.0,0.00016438,2]
[400369812,1767448244307,-500.0,0.00016438,2]
[400369813,1767448244316,-500.0,0.00016438,2]
[400369814,1767448244326,-500.0,0.00016438,2]
[400369815,1767448244337,-500.0,0.00016438,2]
[400369816,1767448244347,-500.0,0.00016438,2]
[400369817,1767448244356,-500.0,0.00016438,2]
[400369818,1767448244367,-500.0,0.00016438,2]
[400369819,1767448244377,-500.0,0.00016438,2]
[400369820,1767448244387,-500.0,0.00016438,2]
[400369821,1767448244397,-500.0,0.00016438,2]
[400369822,1767448244406,-500.0,0.00016438,2]
[400369823,1767448244416,-500.0,0.00016438,2]
[400369824,1767448244426,-500.0,0.00016438,2]
[400369825,1767448244436,-500.0,0.00016438,2]
[400369826,1767448244445,-500.0,0.00016438,2]
[400369827,1767448244455,-500.0,0.00016438,2]
[400369828,1767448244465,-154.76883189,0.00016438,2]
[400369829,1767448244475,-151.0,0.00016438,2]
[400369830,1767448244484,-151.0,0.00016438,2]
[400369831,1767448244494,-151.0,0.00016438,2]
[400369832,1767448244504,-151.0,0.00016438,2]
[400369833,1767448244515,-151.0,0.00016438,2]
[400369834,1767448244524,-151.0,0.00016438,2]
[400369835,1767448244534,-164.0102757,0.00016438,2]
[400369836,1767448244544,-364.58115,0.00016438,2]
[400369837,1767448244553,-364.58115,0.00016438,2]
[400369838,1767448244563,-364.58115,0.00016438,2]
[400369839,1767448244572,-364.58115,0.00016438,2]
[400369840,1767448244582,-3000.0,0.00016438,2]
[400369841,1767448244591,-250.0,0.00016453,2]
[400369842,1767448244601,-200.0,0.00016473,2]
[400369843,1767448244611,-221.71,0.000166,2]
[400369844,1767448244621,-329.0,0.0001682,2]
[400369845,1767448244630,-221.71,0.000169,2]
[400369846,1767448244640,-726.6,0.00016944,2]
[400369847,1767448244649,-388.0,0.00016968,2]
[400369848,1767448244658,-3623.04590627,0.00016979,2]
[400369849,1767448244667,-3500.0,0.00016986,2]
[400369850,1767448244677,-471.0,0.00017117,2]
[400369851,1767448244686,-221.71,0.000173,2]
[400369852,1767448244695,-726.6,0.00017449,2]
[400369853,1767448244719,-200.0,0.00017479,3]
[400369854,1767448244738,-151.0,0.00017534,2]
[400369855,1767448244758,-4000.0,0.00017534,2]
[400369856,1767448244781,-221.71,0.000176,2]
[400369857,1767448244803,-34036.4211186,0.00017791,2]
[400369860,1767448244822,-151.0,0.00017791,2]
[400369862,1767448244842,-151.0,0.00017791,2]
[400369863,1767448244860,-151.0,0.00017791,2]
[400369864,1767448244876,-151.0,0.00017791,2]
[400369865,1767448244896,-972.294013,0.000178,2]
[400369866,1767448244917,-972.294013,0.000178,2]
[400369867,1767448244937,-972.294013,0.000178,2]
[400369868,1767448244949,-972.294013,0.000178,2]
[400369870,1767448244969,-151.0,0.000178,2]
[400369873,1767448244986,-214285.72,0.000178,3]
[400369875,1767448245004,-364.58115,0.000178,2]
[400369878,1767448245019,-364.58115,0.000178,2]
[400369881,1767448245035,-364.58115,0.000178,2]
[400369883,1767448245051,-364.58115,0.000178,2]
[400369886,1767448245067,-400.0,0.00017842,2]
[400369889,1767448245084,-221.71,0.000179,2]
[400369892,1767448245102,-1152.0,0.00017915,2]
[400369894,1767448245119,-726.6,0.00017955,2]
[400369897,1767448245134,-1296.3246116,0.00017997,2]
[400369900,1767448245150,-4500.0,0.00018082,2]
[400369902,1767448245167,-1000.0,0.000181,2]
[400369905,1767448245182,-1000.0,0.000181,2]
[400369908,1767448245199,-1000.0,0.000181,2]
[400369910,1767448245215,-1000.0,0.000181,2]
[400369913,1767448245231,-1000.0,0.000181,2]
[400369915,1767448245246,-1000.0,0.000181,2]
[400369918,1767448245266,-1000.0,0.000181,2]
[400369921,1767448245283,-1000.0,0.000181,2]
[400369923,1767448245301,-1000.0,0.000181,2]
[400369926,1767448245317,-1000.0,0.000181,2]
[400369929,1767448245335,-35714.28,0.00018254,3]
[400369932,1767448245352,-221.71,0.000183,2]
[400369934,1767448245368,-520.73893668,0.00018355,2]
[400369937,1767448245386,-726.6,0.00018461,2]
[400369940,1767448245403,-2674.60743027,0.00018554,2]
[400369942,1767448245420,-269.61503092,0.00018554,2]
[400369945,1767448245438,-251.79035134,0.00018554,2]
[400369948,1767448245455,-250.0,0.00018554,2]
[400369950,1767448245471,-250.0,0.00018554,2]
[400369953,1767448245488,-250.0,0.00018554,2]
[400369955,1767448245504,-30000.0,0.00018554,2]
[400369958,1767448245523,-202.0,0.00018575,3]
[400369961,1767448245538,-221.71,0.000186,2]
[400369963,1767448245547,-4217.82865763,0.0001863,2]
[400369965,1767448245557,-152.42,0.0001878,2]
[400369967,1767448245567,-303.11820731,0.000189,2]
[400369968,1767448245576,-303.09092121,0.000189,2]
[400369990,1767448245771,-726.6,0.00018966,2]
[400369993,1767448245790,-221.71,0.00019,2]
[400369995,1767448245800,-587.46816348,0.0001903,5]
[400369997,1767448245809,-303.11820731,0.00019089,2]
[400369999,1767448245822,-303.09092121,0.00019089,2]
[400370001,1767448245834,-1365.0,0.00019169,2]
[400370003,1767448245844,-2176.266,0.00019169,2]
[400370005,1767448245854,-881.7745,0.00019178,2]
[400370007,1767448245863,-881.7745,0.00019178,2]
[400370009,1767448245873,-881.7745,0.00019178,2]
[400370011,1767448245882,-881.7745,0.00019178,2]
[400370013,1767448245891,-881.7745,0.00019178,2]
[400370015,1767448245900,-881.7745,0.00019178,2]
[400370017,1767448245910,-881.7745,0.00019178,2]
[400370019,1767448245919,-881.7745,0.00019178,2]
[400370021,1767448245929,-881.7745,0.00019178,2]
[400370023,1767448245938,-881.7745,0.00019178,2]
[400370025,1767448245947,-881.7745,0.00019178,2]
[400370026,1767448245956,-881.7745,0.00019178,2]
[400370028,1767448245966,-881.7745,0.00019178,2]
[400370030,1767448245975,-881.7745,0.00019178,2]
[400370032,1767448245984,-881.7745,0.00019178,2]
[400370034,1767448245994,-881.7745,0.00019178,2]
[400370036,1767448246003,-881.7745,0.00019178,2]
[400370038,1767448246012,-587.8496,0.00019178,2]
[400370040,1767448246021,-151.0,0.00019178,2]
[400370042,1767448246031,-151.0,0.00019178,2]
[400370044,1767448246040,-151.0,0.00019178,2]
[400370046,1767448246050,-151.0,0.00019178,2]
[400370048,1767448246059,-151.0,0.00019178,2]
[400370050,1767448246068,-151.0,0.00019178,2]
[400370052,1767448246077,-151.0,0.00019178,2]
[400370054,1767448246086,-151.0,0.00019178,2]
[400370056,1767448246098,-151.0,0.00019178,2]
[400370058,1767448246107,-1104.030292,0.00019178,2]
[400370060,1767448246116,-1104.030292,0.00019178,2]
[400370062,1767448246125,-1104.030292,0.00019178,2]
[400370064,1767448246134,-1104.030292,0.00019178,2]
[400370066,1767448246144,-1104.030292,0.00019178,2]
[400370068,1767448246153,-1104.030292,0.00019178,2]
[400370070,1767448246162,-1104.030292,0.00019178,2]
[400370072,1767448246171,-1104.030292,0.00019178,2]
[400370074,1767448246180,-152.0,0.00019178,3]
[400370076,1767448246190,-3090.63,0.000192,2]
[400370078,1767448246199,-250.16,0.000192,2]
[400370080,1767448246209,-253.93,0.000192,2]
[400370081,1767448246218,-37674.87,0.000192,2]
[400370083,1767448246228,-167.67,0.000192,2]
[400370085,1767448246238,-868.86725822,0.000192,2]
[400370087,1767448246249,-279.41786474,0.00019212,2]
[400370089,1767448246261,-303.11820731,0.00019278,2]
[400370091,1767448246271,-303.09092121,0.00019278,2]
[400370093,1767448246280,-221.71,0.000193,2]
[400370095,1767448246289,-300.0,0.00019315,2]
[400370097,1767448246299,-215.0,0.00019379,2]
[400370099,1767448246308,-6118.66309711,0.00019422,2]
[400370101,1767448246318,-450.0,0.00019452,2]
[400370103,1767448246328,-303.11820731,0.00019467,2]
[400370104,1767448246337,-303.09092121,0.00019467,2]
[400370106,1767448246347,-726.6,0.00019472,2]
[400370108,1767448246357,-170.38573691,0.00019498,30]
[400370110,1767448246367,-5938.40984378,0.0001958,2]
[400370113,1767448246376,-600.0,0.00019589,2]
[400370115,1767448246386,-215.0,0.00019593,2]
[400370116,1767448246395,-221.71,0.000196,2]
[400370118,1767448246405,-303.11820731,0.00019656,2]
[400370120,1767448246414,-303.09092121,0.00019656,2]
[400370122,1767448246424,-151.0,0.00019657,2]
[400370124,1767448246434,-151.0,0.00019657,2]
[400370126,1767448246444,-151.0,0.00019657,2]
[400370128,1767448246453,-151.0,0.00019657,2]
[400370130,1767448246462,-1348.0,0.0001966,2]
[400370132,1767448246472,-2065.50785713,0.00019664,2]
[400370134,1767448246481,-204.0,0.00019671,3]
[400370136,1767448246490,-152.39899385,0.00019693,2]
[400370138,1767448246499,-215.0,0.00019716,2]
[400370140,1767448246509,-233.192,0.00019726,2]
[400370142,1767448246519,-707.74183356,0.00019726,2]
[400370144,1767448246530,-215.0,0.00019747,2]
[400370146,1767448246540,-215.0,0.00019767,2]
[400370148,1767448246549,-215.0,0.00019772,2]
[400370150,1767448246559,-170.38573691,0.00019796,30]
[400370152,1767448246570,-454.67731097,0.00019845,4]
[400370154,1767448246580,-454.63638182,0.00019845,4]
[400370156,1767448246589,-2065.50785713,0.00019914,2]
[400370158,1767448246599,-726.6,0.00019977,2]
[400370160,1767448246609,-8722.0,0.0002,2]
[400370162,1767448246619,-307086.14423256,0.0002,2]
[400370164,1767448246629,-151.0,0.0002,2]
[400370166,1767448246639,-151.0,0.0002,2]
[400370168,1767448246648,-151.55303978,0.0002,2]
[400370170,1767448246657,-300.0,0.0002,2]
[400370172,1767448246667,-972.294013,0.0002,2]
[400370174,1767448246677,-972.294013,0.0002,2]
[400370176,1767448246687,-972.294013,0.0002,2]
[400370178,1767448246696,-972.294013,0.0002,2]
[400370180,1767448246706,-151.0,0.0002,2]
[400370182,1767448246715,-151.0,0.0002,2]
[400370184,1767448246724,-151.0,0.0002,2]
[400370186,1767448246735,-153.207208,0.0002,2]
[400370188,1767448246744,-151.0,0.0002,2]
[400370190,1767448246753,-151.0,0.0002,2]
[400370192,1767448246763,-151.0,0.0002,2]
[400370194,1767448246772,-221.71,0.0002,2]
[400370196,1767448246782,-2000.0,0.0002,7]
[400370198,1767448246791,-1104.030292,0.0002,2]
[400370200,1767448246801,-1104.030292,0.0002,2]
[400370202,1767448246811,-1104.030292,0.0002,2]
[400370204,1767448246820,-1104.030292,0.0002,2]
[400370206,1767448246830,-364.58115,0.0002,2]
[400370208,1767448246839,-364.58115,0.0002,2]
[400370209,1767448246849,-364.58115,0.0002,2]
[400370211,1767448246859,-364.58115,0.0002,2]
[400370214,1767448246869,-454.67731097,0.00020034,4]
[400370215,1767448246879,-454.63638182,0.00020034,4]
[400370217,1767448246888,-152.42,0.0002008,2]
[400370220,1767448246898,-170.38573691,0.00020094,30]
[400370222,1767448246908,-37674.87,0.000201,2]
[400370223,1767448246918,-215.0,0.00020135,2]
[400370225,1767448246928,-215.0,0.00020151,2]
[400370227,1767448246937,-2065.50785713,0.00020165,2]
[400370229,1767448246947,-215.0,0.000202,2]
[400370231,1767448246956,-454.67731097,0.00020223,4]
[400370233,1767448246966,-454.63638182,0.00020223,4]
[400370235,1767448246975,-215.0,0.00020252,2]
[400370237,1767448246985,-215.0,0.00020271,2]
[400370239,1767448246994,-221.71,0.000203,2]
[400370241,1767448247004,-215.0,0.00020308,2]
[400370243,1767448247014,-581.60452668,0.00020355,2]
[400370245,1767448247024,-500.0,0.00020356,7]
[400370247,1767448247033,-2065.50785713,0.00020378,2]
[400370249,1767448247043,-170.38573691,0.00020393,30]
[400370251,1767448247054,-250.16,0.000204,2]
[400370253,1767448247064,-253.93,0.000204,2]
[400370254,1767448247073,-454.67731097,0.00020412,4]
[400370255,1767448247083,-454.63638182,0.00020412,4]
[400370256,1767448247093,-215.0,0.0002045,2]
[400370257,1767448247102,-7594.552095,0.00020461,2]
[400370258,1767448247111,-726.6,0.00020483,2]
[400370259,1767448247121,-5017.59299977,0.00020483,2]
[400370260,1767448247131,-378.44473453,0.00020483,2]
[400370261,1767448247141,-1513.77893813,0.00020483,2]
[400370262,1767448247151,-3402.59660817,0.00020483,2]
[400370263,1767448247160,-769.40690899,0.00020483,2]
[400370264,1767448247170,-3074.55000832,0.00020483,2]
[400370265,1767448247180,-438.82144694,0.0002049,2]
[400370266,1767448247191,-313.63767524,0.0002049,2]
[400370267,1767448247201,-1253.29615025,0.0002049,2]
[400370268,1767448247210,-215.0,0.00020498,2]
[400370269,1767448247220,-2000.0,0.000205,7]
[400370270,1767448247230,-215.0,0.00020531,2]
[400370272,1767448247240,-215.0,0.00020542,2]
[400370273,1767448247251,-215.0,0.00020571,2]
[400370275,1767448247263,-215.0,0.00020578,2]
[400370277,1767448247273,-2065.50785715,0.00020582,2]
[400370279,1767448247283,-454.67731097,0.00020601,4]
[400370281,1767448247293,-454.63638182,0.00020601,4]
[400370283,1767448247303,-215.0,0.00020618,2]
[400370285,1767448247313,-170.38573691,0.00020691,30]
[400370287,1767448247322,-221.71,0.000207,2]
[400370289,1767448247334,-205.0,0.00020767,3]
[400370291,1767448247344,-215.0,0.00020768,2]
[400370293,1767448247354,-1837.87846081,0.00020776,2]
[400370295,1767448247364,-215.0,0.00020781,2]
[400370297,1767448247374,-7096.09181254,0.0002088,2]
[400370299,1767448247383,-215.0,0.00020886,2]
[400370301,1767448247393,-215.0,0.00020935,2]
[400370303,1767448247402,-170.38573691,0.00020989,30]
[400370305,1767448247412,-726.6,0.00020989,2]
[400370307,1767448247422,-49464.84383106,0.00021,2]
[400370309,1767448247433,-37674.87,0.00021,2]
[400370311,1767448247443,-711.41,0.00021,2]
[400370313,1767448247452,-711.41,0.00021,2]
[400370315,1767448247462,-243.96,0.00021,2]
[400370317,1767448247472,-250.0,0.00021,10]
[400370319,1767448247481,-221.71,0.00021,2]
[400370321,1767448247491,-2000.0,0.00021,7]
[400370323,1767448247501,-1005.776843,0.0002104,5]
[400370325,1767448247511,-215.0,0.00021042,2]
[400370327,1767448247521,-215.0,0.00021057,2]
[400370329,1767448247532,-1694.5736252,0.00021057,2]
[400370331,1767448247542,-252.69754164,0.0002106,2]
[400370333,1767448247552,-1000.0,0.0002106,5]
[400370346,1767448247670,-3000.0,0.0002107,2]
[400370348,1767448247679,-3000.0,0.0002108,2]
[400370350,1767448247689,-1000.0,0.0002108,5]
[400370352,1767448247698,-3000.0,0.0002109,2]
[400370354,1767448247707,-3000.0,0.000211,2]
[400370356,1767448247717,-3090.63,0.000211,2]
[400370358,1767448247727,-1000.0,0.000211,5]
[400370360,1767448247736,-253.628271,0.000211,10]
[400370362,1767448247745,-3000.0,0.0002111,2]
[400370364,1767448247755,-3000.0,0.0002112,2]
[400370366,1767448247764,-1000.0,0.0002112,5]
[400370368,1767448247774,-600.0,0.0002112,2]
[400370370,1767448247783,-3000.0,0.0002113,2]
[400370372,1767448247792,-3000.0,0.0002114,2]
[400370374,1767448247802,-1000.0,0.0002114,5]
[400370376,1767448247811,-3000.0,0.0002115,2]
[400370378,1767448247821,-3000.0,0.0002116,2]
[400370380,1767448247830,-1000.0,0.0002116,5]
[400370382,1767448247839,-3000.0,0.0002117,2]
[400370384,1767448247848,-3000.0,0.0002118,2]
[400370386,1767448247857,-1000.0,0.0002118,5]
[400370388,1767448247867,-3000.0,0.0002119,2]
[400370390,1767448247876,-3000.0,0.000212,2]
[400370392,1767448247885,-1000.0,0.000212,5]
[400370394,1767448247894,-3000.0,0.0002121,2]
[400370396,1767448247904,-3000.0,0.0002122,2]
[400370398,1767448247913,-3000.0,0.0002123,2]
[400370399,1767448247922,-3000.0,0.0002124,2]
[400370401,1767448247931,-3000.0,0.0002125,2]
[400370403,1767448247941,-3000.0,0.0002126,2]
[400370405,1767448247950,-3000.0,0.0002127,2]
[400370407,1767448247960,-3000.0,0.0002128,2]
[400370409,1767448247970,-170.38573691,0.00021287,30]
[400370411,1767448247979,-3000.0,0.0002129,2]
[400370413,1767448247989,-3000.0,0.000213,2]
[400370415,1767448247998,-221.71,0.000213,2]
[400370417,1767448248008,-3000.0,0.0002131,2]
[400370419,1767448248018,-3000.0,0.0002132,2]
[400370421,1767448248028,-3000.0,0.0002133,2]
[400370423,1767448248039,-3000.0,0.0002134,2]
[400370425,1767448248048,-3000.0,0.0002135,2]
[400370427,1767448248057,-3000.0,0.0002136,2]
[400370430,1767448248068,-3000.0,0.0002137,2]
[400370432,1767448248078,-3000.0,0.0002138,2]
[400370433,1767448248087,-3000.0,0.0002139,2]
[400370436,1767448248097,-3000.0,0.000214,2]
[400370438,1767448248107,-336.0216671,0.00021406,2]
[400370439,1767448248117,-153.0,0.00021406,2]
[400370442,1767448248126,-3000.0,0.0002141,2]
[400370444,1767448248135,-3000.0,0.0002142,2]
[400370445,1767448248144,-151.0,0.0002142,2]
[400370447,1767448248154,-151.0,0.0002142,2]
[400370449,1767448248163,-151.0,0.0002142,2]
[400370452,1767448248172,-151.0,0.0002142,2]
[400370454,1767448248181,-235.000033,0.0002142,2]
[400370456,1767448248191,-1104.030292,0.0002142,2]
[400370457,1767448248200,-1104.030292,0.0002142,2]
[400370460,1767448248210,-1104.030292,0.0002142,2]
[400370462,1767448248219,-1104.030292,0.0002142,2]
[400370463,1767448248228,-364.58115,0.0002142,2]
[400370465,1767448248238,-364.58115,0.0002142,2]
[400370468,1767448248247,-364.58115,0.0002142,2]
[400370469,1767448248258,-364.58115,0.0002142,2]
[400370472,1767448248268,-5330.544625,0.0002143,2]
[400370474,1767448248278,-972.294013,0.0002143,2]
[400370476,1767448248287,-972.294013,0.0002143,2]
[400370477,1767448248296,-972.294013,0.0002143,2]
[400370479,1767448248306,-972.294013,0.0002143,2]
[400370481,1767448248315,-151.0,0.0002143,2]
[400370483,1767448248325,-151.0,0.0002143,2]
[400370486,1767448248337,-151.0,0.0002143,2]
[400370488,1767448248346,-726.6,0.00021494,2]
[400370489,1767448248355,-1038.45342928,0.000215,2]
[400370492,1767448248364,-12843.99800485,0.000215,2]
[400370493,1767448248374,-250.16,0.000215,2]
[400370495,1767448248383,-253.93,0.000215,2]
[400370497,1767448248394,-2000.0,0.000215,7]
[400370499,1767448248403,-152.42,0.00021564,2]
[400370502,1767448248413,-170.38573691,0.00021585,30]
[400370504,1767448248423,-160.0,0.00021613,3]
[400370505,1767448248432,-160.0,0.00021613,5]
[400370507,1767448248441,-160.0,0.00021613,3]
[400370509,1767448248451,-160.0,0.00021613,5]
[400370511,1767448248460,-600.0,0.00021684,10]
[400370513,1767448248470,-221.71,0.000217,2]
[400370515,1767448248479,-500.0,0.00021852,2]
[400370517,1767448248489,-206.0,0.00021863,5]
[400370519,1767448248498,-500.0,0.00021877,2]
[400370521,1767448248508,-170.38573691,0.00021883,30]
[400370523,1767448248519,-25560.67367052,0.000219,2]
[400370531,1767448248581,178.83,0.00011456,2]
[400370540,1767448248657,223.53,0.00011934,2]
[400370603,1767448249274,-3e-08,0.00012411,2]
[400370650,1767448249731,-268.23999997,0.00012411,2]
[400370652,1767448249740,-312.95,0.00012889,2]
[400370654,1767448249751,-357.65,0.00013366,2]
[400370656,1767448249761,-402.36,0.00013843,2]
[400370658,1767448249771,-447.06,0.00014321,2]
[400370661,1767448249781,-259.79445274,0.00016438,2]
[400370663,1767448249792,-250.0,0.00018554,2]
[400370664,1767448249801,-250.0,0.00018554,2]
[400370667,1767448249811,-250.0,0.00018554,2]
[400370668,1767448249820,-250.0,0.00018554,2]
[400370670,1767448249829,-250.0,0.00018554,2]
[400370673,1767448249839,-2912.27123802,0.00019102,2]
[400370674,1767448249848,-12114.19632948,0.000219,2]
[400370676,1767448249857,-369.675794,0.00021918,2]
[400370678,1767448249867,-1501.1993441,0.00021918,7]
[400370681,1767448249876,-153.0,0.00021954,2]
[400370683,1767448249886,-153.0,0.00021954,2]
[400370685,1767448249895,-153.0,0.00021954,2]
[400370687,1767448249905,-153.0,0.00021954,2]
[400370689,1767448249915,-307.486264,0.00021954,2]
[400370691,1767448249924,-500.0,0.00021956,2]
[400370693,1767448249934,-1900.0,0.00021993,2]
[400370695,1767448249943,-29681.68915636,0.00022,2]
[400370697,1767448249955,-1172.50797802,0.00022,2]
[400370699,1767448249966,-500.16552,0.00022,2]
[400370701,1767448249977,-4692.8644744,0.00022,2]
[400370706,1767448250013,-392.46034728,0.00022,2]
[400370708,1767448250024,-476.59,0.00022,2]
[400370712,1767448250047,-4775.93370931,0.00022,2]
[400370714,1767448250058,-3610.30564609,0.00022,2]
[400370858,1767448251612,-477.04525857,0.00022,2]
[400370864,1767448251755,3936.55974504,0.00012355,2]
[400370871,1767448309677,163.95,0.00010179,2]
[400370872,1767448310166,245.93,0.00010641,2]
[400370873,1767448310718,327.9,0.00011104,2]
[400370874,1767448311164,409.88,0.00011567,2]
[400370875,1767448322951,1527.0986922,0.00011425,2]
[400370876,1767448388836,188.79,0.00010673,2]
[400370877,1767448389326,283.19,0.00011158,2]
[400370878,1767448389809,377.58,0.00011643,2]
[400370879,1767448438102,5000.0,0.00011755,2]
[400370880,1767448459824,201.2206234,0.00011505,2]
[400370881,1767448467788,-437.66281044,0.00011887,2]
[400370882,1767448469891,-273.4815141,0.00011887,2]
[400370883,1767448471242,248.23,0.00010782,2]
[400370884,1767448471678,372.35,0.00011272,2]
[400370885,1767448472435,-496.47,0.00011762,2]
[400370886,1767448472459,-90.62067637,0.00011887,2]
[400370887,1767448482927,-153.93,0.000118,2]
[400370888,1767448482959,-4198.23499909,0.00011887,2]
[400370889,1767448483283,-5000.0,0.00012007,2]
[400370890,1767448488736,-5000.0,0.00012129,2]
[400370891,1767448492029,-467.20408637,0.00012252,2]
[400370892,1767448492062,-620.59,0.00012252,2]
[400370893,1767448492093,-153.93,0.000123,2]
[400370894,1767448492124,-467.20408633,0.00012314,2]
[400370895,1767448492154,-182.28906478,0.00012351,2]
[400370896,1767448492184,-500.0,0.00012351,2]
[400370897,1767448492214,-500.0,0.00012351,2]
[400370898,1767448492244,-207.38642038,0.00012351,2]
[400370899,1767448492276,-500.0,0.00012351,2]
[400370900,1767448492310,-500.0,0.00012351,2]
[400370901,1767448492343,-500.0,0.00012351,2]
[400370902,1767448492375,-302.80268428,0.00012351,2]
[400370903,1767448492546,-197.19731572,0.00012351,2]
[400370904,1767448492580,-500.0,0.00012351,2]
[400370905,1767448492612,-500.0,0.00012351,2]
[400370906,1767448492644,-500.0,0.00012351,2]
[400370907,1767448492675,-500.0,0.00012351,2]
[400370908,1767448492706,-500.0,0.00012351,2]
[400370909,1767448492738,-500.0,0.00012351,2]
[400370910,1767448492770,-500.0,0.00012351,2]
[400370911,1767448492802,-500.0,0.00012351,2]